Cogmind - Beta 16 @@@ ROGUE MODE // 2025.10.30 @ 08:30:29 Player: opdo Result: Self-destructed Performance ------------- Evolutions (5) 2500 Regions Visited (13) 2600 Robots Destroyed (149) 745 Value Destroyed (6048) 6048 Prototype IDs (24) 480 Alien Tech Used (0) 0 Bonus (2442) 2442 TOTAL SCORE: 14815 Bonus ------- High Alert Combat Kills 687 Follower Combat Kills 916 Entered DSFs 500 Met Data Miner 300 Acquired ECA 300 Friendly Fire -261 Cogmind --------- Core Integrity 104/1000 Matter 134/300 Energy 210/210 System Corruption 0% Temperature Cool (0) Movement Walking (185) Ox1 Location -5/Factory Parts ------- > --- POWER (2) -------- Light Fission Core Micro Fission Core > --- PROPULSION (6) --- Improved Carbon-fiber Leg Flexi-carbon Leg Enhanced Armored Leg Enhanced Armored Leg Advanced VSS Leg > --- UTILITY (6) ------ Improved Heat Sink Advanced Cooling System Huge Storage Unit Advanced Targeting Computer Reactive Plating > --- WEAPON (3) ------- KE Penetrator Advanced Assault Cannon > --- INVENTORY (25) --- Light Fission Core Carbon-fiber Leg Carbon-fiber Leg Carbon-fiber Leg Medium Matter Pod (100) Encrypted Comm Array Improved Medium Armor Plating Advanced Shield Generator Advanced System Shield Heavy Beamcaster Gauss Rifle Gauss Rifle Heavy Machine Gun Carbide Saw Peak State ------------ > --- POWER ------------ Neutrino Core Neutrino Core > --- PROPULSION ------- Armored Leg Thunder Leg Thunder Leg Enhanced Armored Leg Advanced Myomer Leg Advanced Myomer Leg > --- UTILITY ---------- Huge Storage Unit Encrypted Comm Array Advanced Targeting Computer Transmission Jammer Improved Medium Armor Plating Thermal Shield > --- WEAPON ----------- Enhanced Force Rifle Enhanced Force Rifle Enhanced Force Rifle > --- INVENTORY -------- Neutrino Core Carbon-fiber Leg Carbon-fiber Leg Carbon-fiber Leg Improved Carbon-fiber Leg Enhanced Armored Leg Enhanced Armored Leg Cesium-ion Thruster Medium Matter Pod Improved Medium Armor Plating Improved Medium Armor Plating Reactive Plating Insulated Plating Thermal Defense Suite Improved Shield Generator Advanced Shield Generator Advanced System Shield Heavy Beamcaster Heavy Beamcaster KE Penetrator Advanced Assault Cannon Advanced Assault Cannon Improved Proton Missile Launcher Carbide Saw [Rating: 105] Favorites ----------- Power Light Neutrino Core Engine Ion Engine Power Core Light Neutrino Core Reactor Antimatter Reactor Propulsion Light Treads Treads Light Treads Leg Advanced Myomer Leg Wheel Armored Huge Wheel Utility Advanced Targeting Computer Device Structural Scanner Storage Huge Storage Unit Processor Advanced Targeting Computer Hackware System Shield Protection Core Shielding Weapon Antimatter Cannon Energy Gun Small Laser Ballistic Gun Advanced KE Penetrator Ballistic Cannon Antimatter Cannon Launcher Proton Missile Launcher Impact Weapon Great Maul Slashing Weapon Carbide Saw Piercing Weapon Spear Build | -11 -10 -10 -8 -7 -7 -7 -7 -6 -6 -6 -6 -5 -5 ------- Run | Yrd Mat Sub Mat Fac Was Fac DSF Fac Low Low Dat Pro Fac Slots Evolved 10 | . . . 4 2 . . . 2 . . . . 2 Power 1 | . . . . . . . . 1 . . . . . Propulsion 4 | . . . 2 2 . . . . . . . . . Utility 4 | . . . 2 . . . . . . . . . 2 Weapon 1 | . . . . . . . . 1 . . . . . Parts Attached 126 | 6 6 5 16 20 4 . 4 7 1 11 . 3 43 Power 20 | 1 . 2 2 3 1 . . 2 . 3 . . 6 Engine 7 | 1 . 2 2 2 . . . . . . . . . Core 12 | . . . . 1 . . . 2 . 3 . . 6 Reactor 1 | . . . . . 1 . . . . . . . . Propulsion 36 | 2 . . 4 8 1 . 2 1 . 5 . . 13 Treads 7 | 2 . . 4 1 . . . . . . . . . Leg 28 | . . . . 6 1 . 2 1 . 5 . . 13 Wheel 1 | . . . . 1 . . . . . . . . . Hover . | . . . . . . . . . . . . . . Flight . | . . . . . . . . . . . . . . Utility 29 | 1 4 . 5 2 . . 1 1 . 1 . . 14 Device 11 | . 2 . . . . . . 1 . . . . 8 Storage 6 | 1 2 . 2 1 . . . . . . . . . Processor 3 | . . . 2 . . . . . . 1 . . . Hackware 2 | . . . 1 . . . . . . . . . 1 Protection 7 | . . . . 1 . . 1 . . . . . 5 Artifact . | . . . . . . . . . . . . . . Weapon 41 | 2 2 3 5 7 2 . 1 3 1 2 . 3 10 Energy Gun 21 | 2 2 3 5 1 1 . . . . . . 3 4 Energy Cannon . | . . . . . . . . . . . . . . Ballistic Gun 6 | . . . . 1 . . . 1 1 . . . 3 Ballistic Cannon 7 | . . . . 2 . . . 1 . 2 . . 2 Launcher 3 | . . . . 1 . . . 1 . . . . 1 Special Weapon . | . . . . . . . . . . . . . . Impact Weapon 1 | . . . . 1 . . . . . . . . . Slashing Weapon 2 | . . . . . 1 . 1 . . . . . . Piercing Weapon 1 | . . . . 1 . . . . . . . . . Special Melee Weapon . | . . . . . . . . . . . . . . Unidentified Prototypes 13 | . . . 3 6 2 . . 1 . . . . 1 Parts Lost 54 | . 2 . . 7 . . . 5 1 8 . 2 29 Power 10 | . . . . 1 . . . 2 . 2 . . 5 Propulsion 19 | . . . . 6 . . . . . 4 . . 9 Utility 7 | . 1 . . . . . . . . . . . 6 Weapon 18 | . 1 . . . . . . 3 1 2 . 2 9 Highest Loss Streak 20 | . 2 . . 3 . . . 2 1 3 . 1 20 To Critical Strikes 2 | . . . . . . . . . . . . . 2 Average Backups 19 | 1 11 15 14 22 24 24 24 24 23 22 25 24 21 Power 1 | . 1 2 1 2 2 2 2 1 1 . 2 2 1 Propulsion 4 | 1 3 4 3 2 6 6 6 6 7 6 7 6 5 Utility 6 | . 1 3 5 10 8 8 8 8 8 7 7 7 7 Weapon 6 | . 4 6 5 6 8 8 8 7 5 6 8 7 7 Tool/Special . | . . . . . . . . . . . . . . Unused Backups 58 | . 5 1 14 7 3 . 2 3 . 5 . 1 17 Power 7 | . 1 . 2 2 1 . . . . . . . 1 Propulsion 15 | . 2 1 3 . . . 1 2 . 2 . 1 3 Utility 13 | . . . 2 5 . . . . . 1 . . 5 Weapon 23 | . 2 . 7 . 2 . 1 1 . 2 . . 8 Tool/Special . | . . . . . . . . . . . . . . Average Slot Usage (%) 95 | . 99 100 97 96 92 92 92 90 92 95 83 99 94 Engine 4 | . 14 14 9 5 . . . 1 . . . . . Core 4 | . . . . 1 1 . . 5 13 12 13 13 10 Treads 14 | . 27 28 34 28 . . . . . . . . . Leg 20 | . . . . 13 38 38 38 33 33 36 40 40 32 Device 6 | . 9 14 9 4 . . . . 6 6 6 6 17 Storage 8 | . 18 14 9 7 7 7 7 6 6 6 6 6 5 Processor 6 | . . . 8 7 7 7 7 6 6 11 13 13 5 Hackware 4 | . . . 8 7 7 7 7 6 6 1 . . . Protection 1 | . . . . 2 7 7 7 5 . . . . 3 Energy Gun 10 | . 28 28 18 9 . . . . . . . 3 10 Ballistic Gun 3 | . . . . 1 . . 1 10 5 6 1 6 2 Ballistic Cannon 4 | . . . . 1 7 7 7 7 13 12 2 8 1 Peak Build Rating 105 | 6 9 11 29 76 72 70 75 89 89 94 82 86 105 Average Rating 54 | 4 8 10 24 44 69 70 72 81 88 81 70 83 94 On Entrance 54 | . 6 9 11 29 68 70 70 75 89 86 82 82 86 Avg Prop Armor Cover (%) 14 | . . . . 15 . . . 5 . . . . 4 Naked Turns . | . . . . . . . . . . . . . . Heaviest Build 131 | 12 32 33 36 103 108 108 111 125 124 123 115 115 131 Greatest Support 142 | 40 40 40 80 128 128 128 128 122 122 142 126 126 142 Greatest Overweight (x) 3 | . 1 . . 3 . . . 1 1 1 . . 2 Average Overweight (x) . | . . . . . . . . . . . . . . Largest Inventory Capacity 25 | 8 15 15 25 25 25 25 25 25 25 25 25 25 25 Average Capacity 21 | 6 14 15 15 24 25 25 25 25 25 25 25 25 25 Most Carried 25 | 3 15 15 15 25 25 25 25 25 24 25 25 25 25 Average Carried 19 | 1 11 15 14 23 24 25 24 24 23 22 25 24 22 Final Capacity 25 | 8 15 15 15 25 25 25 25 25 25 25 25 25 25 Final Carried 25 | 3 15 15 15 25 25 25 25 22 23 25 25 23 14 Class Distribution -------------------- 36% | Mutant 35% | Gunner 18% | Scavenger-Mutant 5% | Scientist-Mutant 3% | Tank Dominant Class ---------------- Mutant | -10/Materials Mutant | -10/Subcaves Scavenger-Mutant | -8/Materials Scientist-Mutant | -7/Factory Mutant | -7/Waste Mutant | -7/Factory Mutant | -7/DSF Gunner | -6/Factory Gunner | -6/Lower Caves Gunner | -6/Lower Caves Mutant | -6/Data Miner Gunner | -5/Proximity Caves Tank | -5/Factory Resources | -11 -10 -10 -8 -7 -7 -7 -7 -6 -6 -6 -6 -5 -5 ----------- Run | Yrd Mat Sub Mat Fac Was Fac DSF Fac Low Low Dat Pro Fac Matter Collected 4156 | 181 238 50 154 515 165 . 61 951 206 714 . 302 619 Remotely . | . . . . . . . . . . . . . . Salvage Created 5917 | . 614 73 539 1085 . . 35 1434 239 430 . 317 1151 Parts 255 | . 49 2 19 48 . . 5 42 8 16 . 18 48 Haulers Intercepted 6 | . 2 . 1 1 . . . 2 . . . . . Recyclers Shooed 8 | . 1 . . 1 . . . 6 . . . . . Parts Field Recycled . | . . . . . . . . . . . . . . Retrieved Matter . | . . . . . . . . . . . . . . Parts Self-Destructed 35 | . . . . . . . . . 3 20 . 12 . Prevented 18 | . . . . . . . . . 5 . . 13 . Parts Restored . | . . . . . . . . . . . . . . Kills | -11 -10 -10 -8 -7 -7 -7 -7 -6 -6 -6 -6 -5 -5 ------- Run | Yrd Mat Sub Mat Fac Was Fac DSF Fac Low Low Dat Pro Fac Combat Hostiles Destroyed 111 | . 12 2 8 21 . . 1 19 7 14 . 6 21 Melee 5 | . . . . 3 . . . . . . . . 2 Guns 60 | . 12 2 8 8 . . . 5 1 8 . 2 14 Cannons 31 | . . . . 4 . . 1 11 3 6 . 3 3 AOE 11 | . . . . 6 . . . 2 3 . . . . Classes Destroyed 19 | . 6 1 2 6 . . . 2 . 1 . 1 . Worker 9 | . 1 . . 5 . . . 3 . . . . . Builder 7 | . 3 . . 3 . . . . . . . . 1 Hauler 6 | . 2 . 1 1 . . . 2 . . . . . Recycler 8 | . . . . 4 . . . 4 . . . . . Operator 1 | . . . . . . . . 1 . . . . . Drone 2 | . . . . . . . . . . . . 2 . Watcher 5 | . 1 . 2 . . . . 1 . . . . 1 Swarmer 16 | . 2 . . . . . . 1 4 5 . . 4 Grunt 42 | . 10 . 5 6 . . . 9 1 4 . 4 3 Brawler 4 | . . . 1 . . . . 1 . 1 . 1 . Duelist 5 | . . . . 3 . . . 1 . 1 . . . Protector 2 | . . . . 2 . . . . . . . . . Sentry 7 | . . . 2 1 . . . . . 1 . . 3 Specialist 6 | . . . . 3 . . 1 1 . . . . 1 Hunter 13 | . . . . 3 . . . 2 2 . . . 6 Programmer 11 | . . . . 3 . . . 3 . 1 . . 4 Heavy 1 | . . . . . . . . 1 . . . . . Behemoth 1 | . . . . . . . . . . 1 . . . Subdweller 2 | . . 2 . . . . . . . . . . . Thug 1 | . . . . 1 . . . . . . . . . Best Kill Streak 11 | . 4 1 2 8 . . 1 11 4 3 . 3 5 Combat Bots Only 9 | . 3 1 2 6 . . 1 9 4 3 . 3 4 Max Kills in Single Turn 4 | . 2 1 1 4 . . 1 2 3 1 . 1 1 Gunslinging . | . . . . . . . . . . . . . . Exploded 3 | . . . . 2 . . . 1 3 . . . . Melee 1 | . . . . 1 . . . . . . . . 1 Uniques/NPCs Destroyed . | . . . . . . . . . . . . . . Combat | -11 -10 -10 -8 -7 -7 -7 -7 -6 -6 -6 -6 -5 -5 -------- Run | Yrd Mat Sub Mat Fac Was Fac DSF Fac Low Low Dat Pro Fac Hostile Shots Fired 1099 | . 64 12 33 175 . . 3 175 35 94 . 41 467 Missed 327 | . 11 3 12 58 . . 3 75 12 21 . 16 116 Hits 772 | . 53 9 21 117 . . . 100 23 73 . 25 351 Melee 12 | . . . . 9 . . . 2 . 1 . . . Projectile 760 | . 53 9 21 108 . . . 98 23 72 . 25 351 Critical Strikes 25 | . . . 3 7 . . . 3 . 2 . . 10 Part Disruptions 2 | . . . . . . . . 2 . . . . . Damage Taken 13179 | . 610 228 322 1947 . 241 43 2141 345 1400 . 381 5521 Core 1873 | . 183 66 78 241 . 100 . 159 15 83 . 52 896 Absorbed by Shields . | . . . . . . . . . . . . . . Redirected to Shielding 78 | . . . . 21 . 23 . 34 . . . . . Ignored by Resistances 632 | . . . . . . . . . 28 93 . 102 409 Regen/Repaired (Parts) 296 | . 126 . . . 78 55 . 37 . . . . . Core Remaining (%) 59 | 100 . . 85 . . . 51 . . . . 63 . Volleys Fired 329 | 1 51 9 31 61 . . 3 51 13 37 . 14 58 Largest 3 | 2 2 2 2 2 . . 2 3 3 3 . 3 3 Hottest 243 | 80 115 115 125 118 . . 68 112 116 118 . 160 243 Shots Fired 806 | 2 102 18 62 120 . 1 4 150 40 103 . 41 163 Gun 560 | 2 102 18 62 96 . . 1 75 10 34 . 23 137 Cannon 222 | . . . . 17 . 1 3 65 27 69 . 14 26 Launcher 24 | . . . . 7 . . . 10 3 . . 4 . Special . | . . . . . . . . . . . . . . Kinetic 435 | . . . . 35 . 1 4 140 37 103 . 27 88 Thermal 325 | 2 102 18 62 78 . . . . . . . . 63 Explosive 9 | . . . . 7 . . . 2 . . . . . Electromagnetic 37 | . . . . . . . . 8 3 . . 14 12 Robot Hit Streak 28 | 1 9 10 28 19 . 14 15 13 7 10 . 8 24 Robot Miss Streak 8 | 1 2 2 2 3 . . 1 6 7 8 . 8 4 Penetration Max 1 | . . . . 1 . . . 1 . . . . 1 Secondary Targets 8 | . 1 . . . . . . . . . . 1 6 Max Gunslinging Chain 1 | . 1 . . . . . . . . . . 1 1 Shots Hit Robots 580 | 1 74 14 52 105 . 1 2 91 22 71 . 27 120 Core Hits 354 | . 35 4 21 82 . . 1 77 16 51 . 18 49 Critical Kills 7 | . . . . 2 . . . 1 . . . . 4 Critical Parts Destroyed 15 | . . . . 2 . . . 6 . . . . 7 Critical Strikes 40 | . 1 . 2 10 . . . 7 3 . . 1 16 Burn 8 | . 1 . 2 5 . . . . . . . . . Destroy 22 | . . . . 4 . . . 7 . . . . 11 Blast 8 | . . . . 1 . . . . 3 . . 1 3 Sever 2 | . . . . . . . . . . . . . 2 Melee Attacks 35 | . . . . 14 . 4 6 3 . . . . 8 Impact 7 | . . . . 7 . . . . . . . . . Slashing 21 | . . . . . . 4 6 3 . . . . 8 Piercing 7 | . . . . 7 . . . . . . . . . Sneak Attacks 1 | . . . . 1 . . . . . . . . . Combat Hostiles . | . . . . . . . . . . . . . . Follow-up Attacks . | . . . . . . . . . . . . . . Damage Inflicted 16682 | 12 960 152 949 4381 . 35 104 3925 723 1864 . 762 2815 Guns 8203 | 10 891 152 949 1508 . . . 1661 93 551 . 318 2070 Cannons 4450 | . . . . 542 . 35 104 1409 393 1307 . 234 426 Explosions 3263 | . . . . 1885 . . . 839 237 . . 210 92 Melee 545 | . . . . 405 . . . . . . . . 140 Ramming 221 | 2 69 . . 41 . . . 16 . 6 . . 87 Kinetic 8102 | . . . . 922 . 35 104 3070 486 1858 . 443 1184 Thermal 4301 | 10 891 152 949 1128 . . . . . . . . 1171 Explosive 2147 | . . . . 1885 . . . 170 . . . . 92 Electromagnetic 1366 | . . . . . . . . 669 237 . . 319 141 Impact 317 | . . . . 317 . . . . . . . . . Slashing 140 | . . . . . . . . . . . . . 140 Piercing 88 | . . . . 88 . . . . . . . . . Highest Corruption 6 | . . . . 6 6 6 6 4 4 4 4 4 . Average Corruption 4 | . . . . 4 6 6 6 3 4 4 4 4 . Corruption Purged . | . . . . . . . . . . . . . . Corruption Blocked . | . . . . . . . . . . . . . . Effects 97 | . . . . 15 12 5 8 10 17 23 1 6 . Message Errors 22 | . . . . . 4 2 2 3 6 3 . 2 . Matter Fused 27 | . . . . 6 2 1 2 4 3 7 . 2 . Heat Flow Errors 6 | . . . . . 1 . . . 2 3 . . . Energy Discharges 16 | . . . . 2 3 . 3 . 3 5 . . . Parts Rejected 1 | . . . . . . . . . . 1 . . . Data Loss (minor) 15 | . . . . 3 2 1 1 2 2 3 1 . . Data Loss (major) 2 | . . . . . . . . . . 1 . 1 . Misfires 3 | . . . . 1 . 1 . . 1 . . . . Alerts 2 | . . . . 2 . . . . . . . . . Weapon Failures 3 | . . . . 1 . . . 1 . . . 1 . Overload Shots . | . . . . . . . . . . . . . . Overflow Damage 279 | . . . . 228 . . . 30 16 2 . . 3 Projectiles 70 | . . . . 22 . . . 29 16 2 . . 1 Explosions 78 | . . . . 77 . . . 1 . . . . . Melee 131 | . . . . 129 . . . . . . . . 2 Knockbacks 54 | . . . . 9 . . 2 11 14 11 . 4 3 Impact 2 | . . . . 2 . . . . . . . . . Kinetic 49 | . . . . 7 . . 2 10 12 11 . 4 3 Secondary 3 | . . . . . . . . 1 2 . . . . Self-Inflicted Damage 29 | . . . . 10 . . . 7 . . . 12 . Shots 3 | . . . . 1 . . . 1 . . . 1 . Rammed 19 | 1 13 . . 5 . . . . . . . . . Targets Rammed 34 | 1 13 . . 6 . . . 3 . 1 . . 10 Kicked 14 | . . . . . . . . 3 . 1 . . 10 Crushed 1 | . . . . 1 . . . . . . . . . Highest Temperature 624 | 18 412 8 279 392 178 . . 241 216 347 . 278 624 Average Temperature 113 | 12 87 3 114 87 95 . . 66 87 121 . 113 237 Received Heat Transfer 2088 | . 303 54 198 300 . . 9 285 63 183 . 180 513 Effects 38 | . . . 3 1 . . . 1 . 4 . . 29 Shutdowns 6 | . . . . . . . . . . . . . 6 Energy Bleed 4 | . . . . . . . . 1 . 1 . . 2 Interference 13 | . . . 3 . . . . . . 3 . . 7 Short Circuit 2 | . . . . 1 . . . . . . . . 1 Damage (minor) 2 | . . . . . . . . . . . . . 2 Damage (major) 9 | . . . . . . . . . . . . . 9 Damage (core) 2 | . . . . . . . . . . . . . 2 Siege Activations . | . . . . . . . . . . . . . . Martial Activations . | . . . . . . . . . . . . . . Shielding Activations . | . . . . . . . . . . . . . . Robots Disrupted . | . . . . . . . . . . . . . . Combat Hostiles . | . . . . . . . . . . . . . . Robots Corrupted 3 | . . . . . . . . 2 . . . 1 . Combat Hostiles 2 | . . . . . . . . 1 . . . 1 . Parts Fried 7 | . . . . 2 . . . 3 1 . . . 1 Impact Corruptions 5 | . . . . 3 . . . 1 . . . . 1 Robots Melted 2 | . . . . . . . . . . . . . 2 Combat Hostiles 2 | . . . . . . . . . . . . . 2 Parts Melted 25 | . 4 3 3 5 . . . . . . . . 10 Heat Transferred 8344 | 25 2141 407 1832 2310 . . . . . . . . 1629 Parts Sabotaged . | . . . . . . . . . . . . . . Parts Stolen . | . . . . . . . . . . . . . . Parts Stripped . | . . . . . . . . . . . . . . Power Chain Reactions . | . . . . . . . . . . . . . . Alert | -11 -10 -10 -8 -7 -7 -7 -7 -6 -6 -6 -6 -5 -5 ------- Run | Yrd Mat Sub Mat Fac Was Fac DSF Fac Low Low Dat Pro Fac Maximum Alert Level 4 | . . . . 2 . . 2 4 . . . . 1 Low Security (%) 76 | 100 100 . 100 86 100 100 14 . . . . . 95 Level 1 5 | . . . . . . . 67 13 . . . . 4 Level 2 7 | . . . . 13 . . 17 22 . . . . . Level 3 5 | . . . . . . . . 30 . . . . . Level 4 5 | . . . . . . . . 33 . . . . . Level 5 . | . . . . . . . . . . . . . . High Security . | . . . . . . . . . . . . . . Max Security . | . . . . . . . . . . . . . . Sterilizations 1 | . . . . . . . 1 . . . . . . Peak Influence 1300 | . 111 . 85 559 194 16 542 1300 . . . . 218 Initial 284 | . . . . . 194 16 . 284 . . . . 187 Average 203 | . 32 . 18 91 111 3 299 848 . . . . 115 Influence Increases 5656 | . 416 . 287 966 . . 562 1825 190 404 . 120 886 Destroy 0b10 Robot/C 2740 | . 240 . 160 380 . . 220 800 140 300 . 80 420 Destroy 0b10 Robot/NC 230 | . 35 . 15 75 . . 5 80 . . . 10 10 Destroy Leader 504 | . 66 . 36 82 . . 30 138 20 50 . . 82 Allied During Kill 716 | . . . . . . . 234 473 . 9 . . . Successful Hack 168 | . 30 . 30 49 . . . 21 . . . . 38 Disable Machine 585 | . . . . 315 . . 30 180 . . . . 60 Destroy Structure 293 | . . . 1 65 . . 43 118 . . . . 66 Advance Influence 150 | . . . . . . . . . . . . . 150 Lose Combat Pursuer 270 | . 45 . 45 . . . . 15 30 45 . 30 60 Influence Decreases 5438 | . 378 38 287 411 531 24 20 1074 791 599 497 60 728 Entered New Map 1778 | . . 19 . . 361 8 . 258 479 133 497 . 23 Time Decay 2829 | . 348 19 287 321 170 16 . 486 302 386 . 60 434 Lost Part 481 | . 20 . . 50 . . . 50 10 80 . . 271 Lost Ally 200 | . 10 . . 40 . . 20 130 . . . . . Purge Threat 150 | . . . . . . . . 150 . . . . . Squads Dispatched 34 | . 3 . 3 3 . . 2 14 . 1 . . 8 Investigation 5 | . 1 . 1 . . . . 3 . . . . . Extermination 6 | . . . . 2 . . . 2 . . . . 2 Reinforcement 18 | . 2 . 2 1 . . 2 8 . . . . 3 Assault 2 | . . . . . . . . 1 . 1 . . . Garrison 3 | . . . . . . . . . . . . . 3 Intercept . | . . . . . . . . . . . . . . Searches Triggered . | . . . . . . . . . . . . . . Construction Impeded 2 | . . . . . . . . 1 . . . . 1 Haulers Reinforced 2 | . . . . . . . . 2 . . . . . Active Scanning Responses . | . . . . . . . . . . . . . . Cargo Convoy Interrupts 3 | . . . . 1 . . . 1 . . . . 1 Stealth | -11 -10 -10 -8 -7 -7 -7 -7 -6 -6 -6 -6 -5 -5 --------- Run | Yrd Mat Sub Mat Fac Was Fac DSF Fac Low Low Dat Pro Fac Distress Signals 7 | . 1 . 1 1 . . . 4 . . . . . Communications Jammed 21 | . . . . . . . . . . . . . 21 Distress Signals 21 | . . . . . . . . . . . . . 21 Times Spotted 191 | . 24 2 16 33 . . 9 34 7 18 . 8 40 Peak Tracking Total 14 | . 3 1 3 11 . . 4 10 4 5 . 4 14 Tactical Retreats 15 | . 2 . 2 . . . . 1 2 3 . 1 4 Traps | -11 -10 -10 -8 -7 -7 -7 -7 -6 -6 -6 -6 -5 -5 ------- Run | Yrd Mat Sub Mat Fac Was Fac DSF Fac Low Low Dat Pro Fac Traps Triggered 10 | . 1 1 2 2 . . 1 1 . . . . 2 Indirectly . | . . . . . . . . . . . . . . Trap Hack Attempts . | . . . . . . . . . . . . . . Triggered . | . . . . . . . . . . . . . . Disarmed . | . . . . . . . . . . . . . . Reprogrammed . | . . . . . . . . . . . . . . Reused . | . . . . . . . . . . . . . . Traps Extracted . | . . . . . . . . . . . . . . Installed . | . . . . . . . . . . . . . . Triggered . | . . . . . . . . . . . . . . Machines | -11 -10 -10 -8 -7 -7 -7 -7 -6 -6 -6 -6 -5 -5 ---------- Run | Yrd Mat Sub Mat Fac Was Fac DSF Fac Low Low Dat Pro Fac Machines Disabled 39 | . . . . 21 . . 2 12 . . . . 4 Max in Single Turn 10 | . . . . 10 . . . 1 . . . . 2 Machines Repaired . | . . . . . . . . . . . . . . Machines Dismantled . | . . . . . . . . . . . . . . Machines Sabotaged . | . . . . . . . . . . . . . . Overloaded Fab Kills . | . . . . . . . . . . . . . . Hacking | -11 -10 -10 -8 -7 -7 -7 -7 -6 -6 -6 -6 -5 -5 --------- Run | Yrd Mat Sub Mat Fac Was Fac DSF Fac Low Low Dat Pro Fac Machines Accessed 41 | . 7 . 6 6 . 3 . 8 . 1 2 . 8 Terminals 32 | . 6 . 6 3 . 3 . 8 . . . . 6 Fabricators 1 | . . . . 1 . . . . . . . . . Repair Stations 1 | . 1 . . . . . . . . . . . . Recycling Units . | . . . . . . . . . . . . . . Scanalyzers 3 | . . . . 2 . . . . . . . . 1 Garrison Access 1 | . . . . . . . . . . . . . 1 Total Hacks 129 | . 16 . 25 29 . 5 . 19 . 1 18 . 16 Successful 75 | . 11 . 11 15 . 2 . 10 . 1 18 . 7 Failed 54 | . 5 . 14 14 . 3 . 9 . . . . 9 Catastrophic 10 | . 1 . 1 2 . 1 . 2 . . . . 3 Database Lockouts . | . . . . . . . . . . . . . . Manual 75 | . 15 . 20 15 . 4 . 11 . . . . 10 Terminals 89 | . 14 . 25 13 . 5 . 19 . . . . 13 Fabricators 3 | . . . . 3 . . . . . . . . . Repair Stations 2 | . 2 . . . . . . . . . . . . Recycling Units . | . . . . . . . . . . . . . . Scanalyzers 15 | . . . . 13 . . . . . . . . 2 Garrison Access 1 | . . . . . . . . . . . . . 1 Terminal Hacks 32 | . 3 . 4 1 . 1 . 4 . 1 18 . . Part Schematic 9 | . . . . . . . . . . . 9 . . Robot Schematic 6 | . . . . . . . . . . . 6 . . Robot Analysis 1 | . 1 . . . . . . . . . . . . Prototype ID Bank 4 | . 1 . . . . . . . . . 3 . . Open Door 1 | . . . . . . . . . . 1 . . . Open DSF 2 | . . . . . . 1 . 1 . . . . . Branch Access Points 1 | . . . 1 . . . . . . . . . . Terminal Index 4 | . 1 . 1 1 . . . 1 . . . . . Unreport Threat 1 | . . . . . . . . 1 . . . . . Hauler Manifests 1 | . . . 1 . . . . . . . . . . Registered Components 2 | . . . 1 . . . . 1 . . . . . Fabricator Hacks . | . . . . . . . . . . . . . . Repair Station Hacks 2 | . 2 . . . . . . . . . . . . Scan Component 1 | . 1 . . . . . . . . . . . . Repair 1 | . 1 . . . . . . . . . . . . Recycling Unit Hacks . | . . . . . . . . . . . . . . Scanalyzer 11 | . . . . 9 . . . . . . . . 2 Retrieve Study 11 | . . . . 9 . . . . . . . . 2 Garrison Access Hacks . | . . . . . . . . . . . . . . Unauthorized Hacks 30 | . 6 . 7 5 . 1 . 6 . . . . 5 Terminals 29 | . 6 . 7 4 . 1 . 6 . . . . 5 Assimilate 1 | . 1 . . . . . . . . . . . . Botnet 4 | . . . 2 1 . . . 1 . . . . . Skim 24 | . 5 . 5 3 . 1 . 5 . . . . 5 Fabricators 1 | . . . . 1 . . . . . . . . . Liberate 1 | . . . . 1 . . . . . . . . . Repair Stations . | . . . . . . . . . . . . . . Recycling Units . | . . . . . . . . . . . . . . Scanalyzers . | . . . . . . . . . . . . . . Garrison Access . | . . . . . . . . . . . . . . Data Cores Recovered 1 | . . . . . . . . 1 . . . . . Used . | . . . . . . . . . . . . . . Hacking Detections 35 | . 7 . 6 5 . 2 . 7 . . . . 8 Full Trace Events 1 | . . . . . . . . 1 . . . . . Feedback Events . | . . . . . . . . . . . . . . Feedback Blocked . | . . . . . . . . . . . . . . Robot Schematics Acquired 6 | . . . . . . . . . . . 6 . . Robots Built . | . . . . . . . . . . . . . . Authchips . | . . . . . . . . . . . . . . Time . | . . . . . . . . . . . . . . Total Robot Build Rating . | . . . . . . . . . . . . . . Part Schematics Acquired 9 | . . . . . . . . . . . 9 . . Parts Built . | . . . . . . . . . . . . . . Authchips . | . . . . . . . . . . . . . . Time . | . . . . . . . . . . . . . . Total Part Build Rating . | . . . . . . . . . . . . . . Part Studies Acquired 11 | . . . . 9 . . . . . . . . 2 Parts Repaired 1 | . 1 . . . . . . . . . . . . Time 26 | . 26 . . . . . . . . . . . . Parts Recycled . | . . . . . . . . . . . . . . Recycled Matter . | . . . . . . . . . . . . . . Retrieved Matter . | . . . . . . . . . . . . . . Retrieved Components . | . . . . . . . . . . . . . . Parts Scanalyzed . | . . . . . . . . . . . . . . Part Schematics Acquired . | . . . . . . . . . . . . . . Parts Damaged . | . . . . . . . . . . . . . . Bothacking | -11 -10 -10 -8 -7 -7 -7 -7 -6 -6 -6 -6 -5 -5 ------------ Run | Yrd Mat Sub Mat Fac Was Fac DSF Fac Low Low Dat Pro Fac Used RIF Installer . | . . . . . . . . . . . . . . Robots Hacked . | . . . . . . . . . . . . . . Non-combat . | . . . . . . . . . . . . . . Combat . | . . . . . . . . . . . . . . Robot Hacks Applied . | . . . . . . . . . . . . . . Relay Couplers Released 4 | . . . . 4 . . . . . . . . . Programmers 4 | . . . . 4 . . . . . . . . . Fabnet Peak Effective % . | . . . . . . . . . . . . . . Robots Rewired 1 | . . . . . . . . . . 1 . . . Allies Hacked 1 | . . . . . . . . 1 . . . . . Hacks Repelled . | . . . . . . . . . . . . . . Allies | -11 -10 -10 -8 -7 -7 -7 -7 -6 -6 -6 -6 -5 -5 -------- Run | Yrd Mat Sub Mat Fac Was Fac DSF Fac Low Low Dat Pro Fac Total Allies 24 | . 1 . . 2 20 . . . . 1 . . . Largest Group 20 | . 1 . . 2 20 20 15 14 . 1 1 1 . Highest-Rated Group 547 | . 10 . . 74 547 547 447 416 . 20 20 20 . Highest-Rated Ally 37 | . 10 . . 37 35 35 35 35 . 20 20 20 . Initial Warlord ECA Mod 9 | . . . . . . . . 9 9 9 9 8 8 Warlord Squad Rendezvous 1 | . . . . . . . . . . . . . 1 Ghost 1 | . . . . . . . . . . . . . 1 Total Orders . | . . . . . . . . . . . . . . Ally Attacks 106 | . . . . 7 . . 28 66 . 5 . . . Total Damage 5053 | . . . . 94 . . 1271 3602 . 86 . . . Kills 44 | . . . . . . . 10 33 . 1 . . . Allies Corrupted . | . . . . . . . . . . . . . . Allies Melted . | . . . . . . . . . . . . . . Intel | -11 -10 -10 -8 -7 -7 -7 -7 -6 -6 -6 -6 -5 -5 ------- Run | Yrd Mat Sub Mat Fac Was Fac DSF Fac Low Low Dat Pro Fac Active Infowar (turns) 4392 | . 1092 225 1251 999 . . . . . . . . 825 Structural 3567 | . 1092 225 1251 999 . . . . . . . . . Jamming 825 | . . . . . . . . . . . . . 825 Robot Analysis Total 1 | . 1 . . . . . . . . . . . . Derelict Logs Recovered 3 | . . 1 . . . . . . . 2 . . . Drone Launches . | . . . . . . . . . . . . . . Drone Recoveries . | . . . . . . . . . . . . . . Exploration | -11 -10 -10 -8 -7 -7 -7 -7 -6 -6 -6 -6 -5 -5 ------------- Run | Yrd Mat Sub Mat Fac Was Fac DSF Fac Low Low Dat Pro Fac Turns Passed 9769 | 70 1681 225 1265 1451 347 119 289 1268 670 903 104 313 1064 Spaces Moved 5049 | 37 888 114 411 709 252 79 195 704 311 502 81 209 557 Core 4 | 4 . . . . . . . . . . . . . Treads 1935 | 33 888 114 411 489 . . . . . . . . . Legs 3097 | . . . . 207 252 79 195 704 311 502 81 209 557 Wheels 13 | . . . . 13 . . . . . . . . . Hover . | . . . . . . . . . . . . . . Flight . | . . . . . . . . . . . . . . Fastest Speed 50 | 50 160 160 160 118 120 120 120 121 121 120 120 120 112 Average Speed 149 | 148 160 160 161 156 120 120 120 150 198 148 120 120 126 Slowest Speed 255 | 160 240 160 162 203 120 120 123 201 199 199 120 120 255 Overloaded Moves . | . . . . . . . . . . . . . . Propulsion Burnouts . | . . . . . . . . . . . . . . Robots Hopped . | . . . . . . . . . . . . . . Potential Cave-ins . | . . . . . . . . . . . . . . Cave-ins Triggered . | . . . . . . . . . . . . . . Exploration Rate (%) 46 | 4 90 6 45 30 95 4 95 24 49 75 69 40 19 Regions Visited 13 Branch Regions 5 Pre-discovered Areas 6 | . . . 5 . . . . . 1 . . . . Known Exits Taken 5 | . 1 1 1 . . 1 . . . . . 1 . Unknown Exits Taken 5 | 1 . . . . . . . 1 1 1 1 . . Scrap Searched 11 | . . 7 . . . . . . 1 2 . 1 . Spaces Dug 3 | . . . . 3 . . . . . . . . . Terrain Destroyed 145 | . . . . 68 . . . 36 9 2 . . 30 Melee 3 | . . . . 3 . . . . . . . . . Projectile 45 | . . . . 3 . . . 29 9 2 . . 2 AOE 96 | . . . . 62 . . . 7 . . . . 27 Terrain Rammed . | . . . . . . . . . . . . . . Walls Destroyed . | . . . . . . . . . . . . . . Machines Disabled . | . . . . . . . . . . . . . . Actions | -11 -10 -10 -8 -7 -7 -7 -7 -6 -6 -6 -6 -5 -5 --------- Run | Yrd Mat Sub Mat Fac Was Fac DSF Fac Low Low Dat Pro Fac Total 6527 | 47 1039 141 960 902 299 95 236 790 334 584 88 240 772 Wait 702 | . 56 7 463 34 31 13 19 7 6 5 2 12 47 Move 5037 | 36 887 113 410 709 251 78 194 703 310 501 80 208 557 Hop . | . . . . . . . . . . . . . . Pick Up 116 | 3 19 1 15 29 3 . 3 5 2 15 . 1 20 Fast Attach 39 | 6 2 . 5 6 2 . . . . 5 3 . 10 Attach 45 | . 2 . 1 6 . . . 5 1 7 . 2 21 Detach 1 | . . . . 1 . . . . . . . . . Swap 89 | . 3 5 14 19 4 . 6 9 2 3 . 2 22 Drop 96 | . 6 6 21 17 7 . 5 4 . 7 3 1 19 Fire 329 | 1 51 9 31 61 . . 3 51 13 37 . 14 58 Melee 35 | . . . . 14 . 4 6 3 . . . . 8 Ram . | . . . . . . . . . . . . . . Kick 14 | . . . . . . . . 3 . 1 . . 10 Crush 20 | 1 13 . . 6 . . . . . . . . . Escape Stasis . | . . . . . . . . . . . . . . Rewire 4 | . . . . . 1 . . . . 3 . . . Trap . | . . . . . . . . . . . . . . Miscellaneous . | . . . . . . . . . . . . . . Route ------- -11/Scrapyard -10/Materials (discovered 5 exits: [*Mat x3] / *Min / *Sub) -10/Subcaves (discovered 2 exits: *Mat x2) -8/Materials (discovered 2 exits: *Fac x2) -7/Factory (discovered 3 exits: Sto / *Low x2) -7/Waste -7/Factory (discovered 2 exits: Sto / DSF) -7/DSF -6/Factory (discovered 3 exits: Fac x2 / [*Low]) -6/Lower Caves -6/Lower Caves (discovered 2 exits: *Fac / *Dat) -6/Data Miner -5/Proximity Caves -5/Factory History --------- Turn | Location | Event 3 | -11/Scrapyard | Discovered new exit (range 15) 71 | -11/Scrapyard | Entered Materials 141 | -10/Materials | Discovered new exit (range 5) 267 | -10/Materials | Discovered new exit (range 16) 313 | -10/Materials | Build established: Mutant 464 | -10/Materials | Discovered new exit (range 16) 787 | -10/Materials | Discovered new exit (range 7) 893 | -10/Materials | Core integrity fell below 50% 1239 | -10/Materials | Discovered new exit (range 9) 1535 | -10/Materials | Repaired Lgt. Treads 1564 | -10/Materials | Learned Recycling recycling unit intel 1597 | -10/Materials | Identified exit to Mines 1597 | -10/Materials | Identified exit to Subcaves 1631 | -10/Materials | Learned Storage security intel 1632 | -10/Materials | Learned Storage stockpile data 1752 | -10/Materials | Entered Subcaves 1753 | -10/Subcaves | Approached by a straggling Scientist 1753 | -10/Subcaves | Identified exit to Materials 1757 | -10/Subcaves | Learned Materials stockpile data 1853 | -10/Subcaves | Core integrity fell below 20% 1977 | -10/Subcaves | Entered Materials 1977 | -8/Materials | Evolved 4 slots: Propulsion x2, Utility x2 2380 | -8/Materials | Build established: Scavenger-Mutant 2751 | -8/Materials | Discovered new exit (range 16) 2943 | -8/Materials | Learned location of Extension (-5) 3002 | -8/Materials | Learned location of Recycling (-7) 3053 | -8/Materials | Identified exit to Factory 3096 | -8/Materials | Learned location of Zion (-7) 3151 | -8/Materials | Learned Factory repair station intel 3215 | -8/Materials | Learned location of Storage (-7) 3242 | -8/Materials | Entered Factory 3242 | -7/Factory | Evolved 2 slots: Propulsion x2 3243 | -7/Factory | Identified exit to Storage 3243 | -7/Factory | Identified exit to Lower Caves 3244 | -7/Factory | Loaded intel: 6 repair station locations 4070 | -7/Factory | Build established: Scientist-Mutant 4146 | -7/Factory | Allied Derelicts emerged from ambush trap array 4234 | -7/Factory | Cargo convoy interrupted 4292 | -7/Factory | Lost 3 parts (3n) 4304 | -7/Factory | Lost 3 allies 4615 | -7/Factory | Build established: Mutant 4693 | -7/Factory | Sucked down chute 4693 | -7/Factory | Entered Waste 4694 | -7/Waste | Joined by Warlord forces that had cleared the area 4885 | -7/Waste | Discovered new exit (range 14) 5040 | -7/Waste | Entered Factory 5040 | -7/Factory | Accompanied by 20 allies 5105 | -7/Factory | Lost 5 allies 5146 | -7/Factory | Identified exit to DSF 5159 | -7/Factory | Entered DSF 5159 | -7/DSF | Accompanied by 15 allies 5160 | -7/DSF | Joined Warlord attack on 0b10 via DSF 5182 | -7/DSF | Additional patrols routed to DSF 5227 | -7/DSF | Lost 4 allies 5231 | -7/DSF | Discovered new exit (range 16) 5411 | -7/DSF | Sterilization system engaged 5431 | -7/DSF | Ambient heat levels rising (+10) 5446 | -7/DSF | Ambient heat levels rising (+10) 5448 | -7/DSF | Entered Factory 5448 | -6/Factory | Accompanied by 14 allies 5448 | -6/Factory | Evolved 2 slots: Power x1, Weapon x1 5529 | -6/Factory | Discovered new exit (range 16) 5747 | -6/Factory | Build established: Gunner 5798 | -6/Factory | First assault squad dispatched 6121 | -6/Factory | Lost 6 allies 6148 | -6/Factory | Cargo convoy interrupted 6346 | -6/Factory | Destroyed 9 combat bots 6513 | -6/Factory | Identified exit to Factory 6593 | -6/Factory | Learned Hub_04(d) stockpile data 6664 | -6/Factory | Learned location of 1 exit from Hub_04(d) 6716 | -6/Factory | Entered Lower Caves 6722 | -6/Lower Caves | Lost 3 allies 6724 | -6/Lower Caves | Met a Warlord Commander 6725 | -6/Lower Caves | Learned location of Warlord (-5) 6726 | -6/Lower Caves | Warlord Commander delivered Encrypted Comm Array 6741 | -6/Lower Caves | Found Encrypted Comm Array 7358 | -6/Lower Caves | Discovered new exit (range 8) 7386 | -6/Lower Caves | Entered another Lower Caves area 7386 | -6/Lower Caves | Discovered exit to Factory (range 7) 7413 | -6/Lower Caves | Encountered a Warlord checkpoint 7474 | -6/Lower Caves | Learned Factory emergency access door positions 7564 | -6/Lower Caves | Lost 3 parts (1p1n1w) 7597 | -6/Lower Caves | Spotted B-75 Beast 7626 | -6/Lower Caves | Destroyed B-75 Beast 7654 | -6/Lower Caves | Lost 3 parts (1p1n1w) 7667 | -6/Lower Caves | Attracted the attention of an 0b10 outpost 8236 | -6/Lower Caves | Learned Factory stockpile data 8255 | -6/Lower Caves | Discovered new exit (range 7) 8289 | -6/Lower Caves | Entered Data Miner 8289 | -6/Data Miner | Accompanied by 1 ally 8289 | -6/Data Miner | Discovered new exit (range 6) 8314 | -6/Data Miner | Met Data Miner 8356 | -6/Data Miner | Received God Mode back door access code from Data Miner 8393 | -6/Data Miner | Entered Proximity Caves 8393 | -5/Proximity Caves | Accompanied by 1 ally 8396 | -5/Proximity Caves | Spotter reported a threat 8686 | -5/Proximity Caves | Discovered exit to Factory (range 16) 8706 | -5/Proximity Caves | Entered Factory 8706 | -5/Factory | Evolved 2 slots: Utility x2 8948 | -5/Factory | Lost 3 parts (1p1n1w) 8974 | -5/Factory | Joined by Warlord Ghost squad 9496 | -5/Factory | Cargo convoy interrupted 9507 | -5/Factory | Core integrity fell below 50% 9567 | -5/Factory | Core integrity fell below 20% 9606 | -5/Factory | Lost 20 parts (3p7n4u6w) 9770 | -5/Factory | Self-destructed Last Messages --------------- 09746_ Penetrated by Slug. 09749_ Slug penetrates Wall. 09749_ Penetrated by Slug. 09752_ Slug penetrates H-66 Slayer. 09752_ H-66 Slayer suffers critical hit (Blast). 09752_ Destroyed Unknown Processor. 09752_ Penetrated by Slug. 09755_ Slug penetrates H-66 Slayer. 09755_ Penetrated by Slug. 09755_ Imp. Medium Armor Plating destroyed. 09760_ Slug penetrates Wall. 09761_ Slug penetrates H-66 Slayer. 09763_ Penetrated by Slug. 09763_ Hvy. Machine Gun destroyed. 09766_ Penetrated by Slug. 09766_ Imp. Carbon-fiber Leg+ destroyed. 09767_ Slug penetrates Wall. 09767_ H-66 Slayer destroyed. 09770_ Slug penetrates Wall. 09770_ Penetrated by Slug. Map ----- +----------------------------------------------------+ | ????????????# | | ????????????# | | ????????????# | | ????????????# | | ????????????# | | ????##+###### % | | ????# | | ??### % !*% #+ | | ??#"" | | ??#"" % | | ??#"T """ "%%% " | | ??#"" """ "% % T ####+# | | ??#"" """ %%% " !#????? | | ??### """ "% !=" %#????? | | ????# !%[ !#????? | | ????# ! [ #????? | | ????##"""T"""## [=" #????? | | ?????##########+##%" #????? | | ????????# ==|=#! #????? | | ?######## !! !# #????? | | ?#% + # #????? | | ?#h###### =[ # #???#? | | ##/###### %=%# ###"## | | # %% ## [=[+ % + !!! | | # % ## #%! # /! | | # @ ## # #?/! | | # ## ! # !%# | | # ########### ! # | | # # # ! | | # + + | | # ! # ###### | | # ### ###########????? | | # #??????????????????? | | # #??????????????????? | | # #??????????????????? | | # !#??????????????????? | | ########??????????????????? | | ??????????????????????????? | | ????????????????????????!?? | | ??????????????????????????? | | ??????????????????????????? | | ??????????????????????????? | | ??????????????????????????? | | ??????????????????????????? | | ??????????????????????????? | | ??????????????????????????? | | ??????????????????????????? | | ??????????????????????????? | | ??????????????????????????? | | ??????????????????????????? | +----------------------------------------------------+ Best States ------------- Heat Dissipation 85 Energy Generation 34 Energy Capacity 535 Matter Stores 400 Matter Capacity 400 Sight Range 16 Terrain Scan Density 10 Jamming Range 12 Armor Coverage 375 Resistance: KI 20 Resistance: TH 20 Resistance: EM 15 Core Shielding 20 Evasion (%) 80 Targeting Accuracy 8 Recoil Reduction 6 Salvage Targeting 2 Defensive Hacking 10 Item Schematics ----------------- Combat Drone Bay | -6/Data Miner | Free Lgt. Regenerative Plating | -6/Data Miner | Free Cld. Gravmag System | -6/Data Miner | Free Prc. Matter Filter | -6/Data Miner | Free Kinetic Spear | -6/Data Miner | Free Adv. Medium Treads | -6/Data Miner | Free Adv. Transmission Jammer | -6/Data Miner | Free Phase Gun | -6/Data Miner | Free Adv. Power Amplifier | -6/Data Miner | Free Robot Schematics ------------------ G-50 Soldier | -6/Data Miner | Free E-15 Imp | -6/Data Miner | Free Y-54 Guardian | -6/Data Miner | Free R-10 Processor | -6/Data Miner | Free Y-64 Sentinel | -6/Data Miner | Free G-67 Veteran | -6/Data Miner | Free Fabricated ------------ Nothing Repaired ---------- Lgt. Treads | 10% | -10/Materials Studied --------- Arm. Treads | -7/Factory | Hacked Lgt. Treads | -7/Factory | Hacked Lgt. Armored Exoskeleton | -7/Factory | Hacked Pulse Rifle | -7/Factory | Hacked Grenade Launcher | -7/Factory | Hacked Great Maul | -7/Factory | Hacked Imp. Deuterium Engine | -7/Factory | Hacked Arm. Huge Wheel | -7/Factory | Hacked Imp. Carbon-fiber Leg | -7/Factory | Hacked Thunder Leg | -5/Factory | Hacked Carbon-fiber Leg | -5/Factory | Hacked Alien Tech Used ----------------- None Achievements -------------- Botjacking Hot Goods I Like You, Cogmind Jackpot Challenges ------------ None Game ------ Seed BlanketAlphaClaws Manual? 0 Play Time 01:06:57 Cumulative 117.2 hours Start 2025.10.29 @ 23:26:55 End 2025.10.30 @ 08:30:29 Sessions 3 Manual Loads 0 Difficulty Rogue Special Mode None Game No. 307 Rogue 305 Adventurer 2 Explorer 0 Win Type - Total 1 Types 1/0/0/0/0/0/0/0/0/0 Lore% 78 Gallery% 61 Achievement% 37 Wizard Run 0 Options --------- Layout 2 ASCII 0 Keyboard 0 Movement Numpad Keybinds 0 Fullscreen 2 Font 24/Smallcaps Map View 50x44 Zoom Use 0% Tactical HUD 1 Map Filters NONE Filters NONE Steam 1 RUN: 7183e200-4d0d-4ef0-9515-0f21c175eefc